fUST/lending_fUST_20251104
["ID","MTS","AMOUNT","RATE_DAILY","PERIOD"]
[393037104,1762237847706,-500.0,0.00045753,120]
[393037105,1762237847715,-500.0,0.00045753,120]
[393037106,1762237847725,-500.0,0.00045753,2]
[393037107,1762237847734,-500.0,0.00045753,120]
[393037108,1762237847743,-555.36565626,0.00045753,120]
[393037109,1762237847753,-500.0,0.00045753,120]
[393037110,1762237847763,-500.0,0.00045753,120]
[393037111,1762237847773,-949.16,0.00045753,120]
[393037112,1762237847782,-500.0,0.00045753,120]
[393037113,1762237847791,-500.0,0.00045753,120]
[393037114,1762237847801,-1236.5,0.00046027,2]
[393037115,1762237847810,-500.0,0.00046027,120]
[393037116,1762237847819,-500.0,0.00046027,120]
[393037117,1762237847828,-2818.63,0.00046027,15]
[393037118,1762237847837,-1509.73,0.00046027,120]
[393037119,1762237847847,-1862.09,0.00046027,45]
[393037120,1762237847856,-500.0,0.00046027,120]
[393037121,1762237847865,-1262.56,0.00046027,120]
[393037122,1762237847874,-603.92469043,0.00046027,120]
[393037123,1762237847883,-544.51762643,0.00046027,120]
[393037124,1762237847892,-1457.41,0.00046027,120]
[393037125,1762237847902,-500.0,0.00046027,120]
[393037126,1762237847911,-500.0,0.00046027,120]
[393037127,1762237847920,-528.20463614,0.00046027,120]
[393037128,1762237847930,-500.0,0.00046027,2]
[393037129,1762237847940,-500.0,0.00046027,120]
[393037130,1762237847949,-500.0,0.00046027,120]
[393037131,1762237847958,-500.0,0.00046027,120]
[393037132,1762237847968,-949.16,0.00046027,120]
[393037133,1762237847978,-500.0,0.00046027,120]
[393037134,1762237847987,-500.0,0.00046027,120]
[393037135,1762237847997,-700.0,0.00046301,60]
[393037136,1762237848006,-1236.5,0.00046301,2]
[393037137,1762237848017,-500.0,0.00046301,120]
[393037138,1762237848026,-500.0,0.00046301,120]
[393037139,1762237848036,-2818.63,0.00046301,15]
[393037140,1762237848045,-1509.73,0.00046301,120]
[393037141,1762237848055,-1862.09,0.00046301,45]
[393037142,1762237848065,-500.0,0.00046301,120]
[393037143,1762237848075,-1262.56,0.00046301,120]
[393037144,1762237848084,-1457.41,0.00046301,120]
[393037145,1762237848094,-500.0,0.00046301,120]
[393037146,1762237848103,-500.0,0.00046301,120]
[393037147,1762237848112,-587.424077,0.00046301,120]
[393037148,1762237848122,-500.0,0.00046301,120]
[393037149,1762237848131,-253.13760865,0.00046301,120]
[393037150,1762237848141,-949.16,0.00046301,120]
[393037151,1762237848150,-500.0,0.00046301,120]
[393037152,1762237848159,-500.0,0.00046301,120]
[393037153,1762237848168,-150.0,0.00046301,2]
[393037154,1762237848178,-1236.5,0.00046575,2]
[393037155,1762237848188,-500.0,0.00046575,120]
[393037156,1762237848198,-500.0,0.00046575,120]
[393037157,1762237848207,-2818.63,0.00046575,15]
[393037158,1762237848217,-1509.73,0.00046575,120]
[393037159,1762237848227,-1862.09,0.00046575,45]
[393037160,1762237848237,-500.0,0.00046575,120]
[393037161,1762237848247,-1262.56,0.00046575,120]
[393037162,1762237848257,-1457.41,0.00046575,120]
[393037163,1762237848443,-500.0,0.00046575,120]
[393037164,1762237848453,-500.0,0.00046575,120]
[393037165,1762237848463,-500.0,0.00046575,120]
[393037166,1762237848473,-949.16,0.00046575,120]
[393037167,1762237848483,-500.0,0.00046575,120]
[393037168,1762237848492,-500.0,0.00046575,120]
[393037169,1762237848504,-8517.9,0.000466,14]
[393037170,1762237848516,-1616.53,0.000468,120]
[393037171,1762237848527,-999.0,0.00046812,120]
[393037172,1762237848538,-700.0,0.00046849,60]
[393037173,1762237848548,-1236.5,0.00046849,2]
[393037174,1762237848558,-609.87807699,0.00046849,120]
[393037175,1762237848568,-413.49374728,0.00046849,120]
[393037176,1762237848579,-2818.63,0.00046849,15]
[393037177,1762237848589,-1509.73,0.00046849,120]
[393037178,1762237848599,-1862.09,0.00046849,45]
[393037179,1762237848609,-500.0,0.00046849,120]
[393037180,1762237848624,-1262.56,0.00046849,120]
[393037181,1762237848634,-1457.41,0.00046849,120]
[393037182,1762237848644,-500.0,0.00046849,120]
[393037183,1762237848655,-500.0,0.00046849,120]
[393037184,1762237848665,-500.0,0.00046849,120]
[393037185,1762237848676,-949.16,0.00046849,120]
[393037186,1762237848687,-500.0,0.00046849,120]
[393037187,1762237848697,-500.0,0.00046849,120]
[393037188,1762237848707,-261.1,0.000469,30]
[393037189,1762237848718,-200.0,0.00046918,120]
[393037190,1762237848729,-352.62034527,0.00047,30]
[393037191,1762237848739,-1000.0,0.00047,120]
[393037192,1762237848751,-150.0,0.00047,120]
[393037193,1762237848761,-1000.0,0.00047,120]
[393037194,1762237848771,-579.82662477,0.00047018,28]
[393037195,1762237848782,-1236.5,0.00047123,2]
[393037196,1762237848793,-2818.63,0.00047123,15]
[393037197,1762237848803,-1509.73,0.00047123,120]
[393037198,1762237848813,-1862.09,0.00047123,45]
[393037199,1762237848823,-500.0,0.00047123,120]
[393037200,1762237848833,-1262.56,0.00047123,120]
[393037201,1762237848843,-1457.41,0.00047123,120]
[393037202,1762237848853,-634.17903357,0.00047123,120]
[393037203,1762237848864,-500.0,0.00047123,120]
[393037204,1762237848874,-539.19219391,0.00047123,120]
[393037205,1762237848886,-949.16,0.00047123,120]
[393037206,1762237848896,-500.0,0.00047123,120]
[393037207,1762237848906,-510.30665843,0.00047123,120]
[393037208,1762237848917,-1501.39,0.000472,14]
[393037209,1762237848927,-700.0,0.00047397,60]
[393037210,1762237848937,-1236.5,0.00047397,2]
[393037211,1762237848947,-2818.63,0.00047397,15]
[393037212,1762237848957,-1509.73,0.00047397,120]
[393037213,1762237848967,-1862.09,0.00047397,45]
[393037214,1762237848977,-500.0,0.00047397,120]
[393037215,1762237848987,-1262.56,0.00047397,120]
[393037216,1762237848998,-1457.41,0.00047397,120]
[393037217,1762237849009,-500.0,0.00047397,120]
[393037218,1762237849019,-949.16,0.00047397,120]
[393037219,1762237849029,-500.0,0.00047397,120]
[393037220,1762237849040,-8559.41921874,0.000474,2]
[393037221,1762237849051,-578975.458,0.00047444,30]
[393037222,1762237849061,-200.0,0.000476,120]
[393037223,1762237849071,-1236.5,0.00047671,2]
[393037224,1762237849082,-2818.63,0.00047671,15]
[393037225,1762237849092,-1509.73,0.00047671,120]
[393037226,1762237849102,-1862.09,0.00047671,45]
[393037227,1762237849113,-500.0,0.00047671,120]
[393037228,1762237849123,-1262.56,0.00047671,120]
[393037229,1762237849133,-1457.41,0.00047671,120]
[393037230,1762237849143,-500.0,0.00047671,120]
[393037231,1762237849153,-949.16,0.00047671,120]
[393037232,1762237849163,-500.0,0.00047671,120]
[393037233,1762237849173,-1236.5,0.00047945,2]
[393037234,1762237849184,-2818.63,0.00047945,15]
[393037235,1762237849194,-1509.73,0.00047945,120]
[393037236,1762237849205,-1862.09,0.00047945,45]
[393037237,1762237849215,-500.0,0.00047945,120]
[393037238,1762237849227,-1262.56,0.00047945,120]
[393037239,1762237849237,-1457.41,0.00047945,120]
[393037240,1762237849250,-558.49155758,0.00047945,120]
[393037241,1762237849261,-949.16,0.00047945,120]
[393037242,1762237849273,-500.0,0.00047945,120]
[393037243,1762237849284,-20074.90728526,0.00048,120]
[393037244,1762237849295,-1000.0,0.00048,120]
[393037245,1762237849306,-150.0,0.00048,120]
[393037246,1762237849318,-362.8204,0.00048,120]
[393037247,1762237849329,-300.0,0.0004811,60]
[393037248,1762237849340,-2641.28,0.00048186,30]
[393037249,1762237849350,-1236.5,0.00048219,2]
[393037250,1762237849360,-2818.63,0.00048219,15]
[393037251,1762237849371,-1509.73,0.00048219,120]
[393037252,1762237849381,-1862.09,0.00048219,45]
[393037253,1762237849392,-392.08391472,0.00048219,120]
[393037254,1762237849402,-1262.56,0.00048219,120]
[393037255,1762237849413,-1457.41,0.00048219,120]
[393037256,1762237849423,-424.95591989,0.00048219,120]
[393037257,1762237849433,-949.16,0.00048219,120]
[393037258,1762237849444,-1156.33055905,0.00048398,120]
[393037259,1762237849454,-707542.86493656,0.000484,30]
[393037260,1762237849465,-700.0,0.00048493,60]
[393037261,1762237849475,-1236.5,0.00048493,2]
[393037262,1762237849486,-2818.63,0.00048493,15]
[393037263,1762237849496,-1509.73,0.00048493,120]
[393037264,1762237849507,-1862.09,0.00048493,45]
[393037265,1762237849517,-1262.56,0.00048493,120]
[393037266,1762237849528,-1457.41,0.00048493,120]
[393037267,1762237849538,-949.16,0.00048493,120]
[393037268,1762237849548,-1236.5,0.00048767,2]
[393037269,1762237849561,-207.96,0.00048767,120]
[393037270,1762237849571,-207.96,0.00048767,120]
[393037271,1762237849581,-207.96,0.00048767,120]
[393037272,1762237849592,-207.96,0.00048767,120]
[393037273,1762237849602,-207.96,0.00048767,120]
[393037274,1762237849613,-207.96,0.00048767,120]
[393037275,1762237849624,-207.96,0.00048767,120]
[393037276,1762237849634,-207.96,0.00048767,120]
[393037277,1762237849645,-207.96,0.00048767,120]
[393037278,1762237849657,-207.96,0.00048767,120]
[393037279,1762237849668,-207.96,0.00048767,120]
[393037280,1762237849679,-207.96,0.00048767,120]
[393037281,1762237849690,-207.96,0.00048767,120]
[393037282,1762237849700,-207.96,0.00048767,120]
[393037283,1762237849711,-207.96,0.00048767,120]
[393037284,1762237849722,-207.96,0.00048767,120]
[393037285,1762237849733,-207.96,0.00048767,120]
[393037286,1762237849744,-207.96,0.00048767,120]
[393037287,1762237849756,-207.96,0.00048767,120]
[393037288,1762237849766,-2818.63,0.00048767,15]
[393037289,1762237849777,-1509.73,0.00048767,120]
[393037290,1762237849788,-1862.09,0.00048767,45]
[393037291,1762237849799,-1262.56,0.00048767,120]
[393037292,1762237849809,-1457.41,0.00048767,120]
[393037293,1762237849820,-949.16,0.00048767,120]
[393037294,1762237849830,-4776.28376999,0.000488,120]
[393037295,1762237849841,-2017.77526785,0.000488,120]
[393037296,1762237849852,-1000.0,0.000489,120]
[393037297,1762237849862,-1000.0,0.000489,120]
[393037298,1762237849873,-1000.0,0.000489,120]
[393037299,1762237849884,-1000.0,0.000489,120]
[393037300,1762237849894,-1000.0,0.00049,120]
[393037301,1762237849906,-1496.02202742,0.00049,120]
[393037302,1762237849916,-5000.0,0.00049,120]
[393037303,1762237849927,-1000.0,0.00049,120]
[393037304,1762237849938,-150.34492119,0.00049,120]
[393037305,1762237849948,-1000.0,0.00049,120]
[393037306,1762237849959,-158.0,0.00049,120]
[393037307,1762237849976,-1236.5,0.00049041,2]
[393037308,1762237850000,-207.96,0.00049041,120]
[393037309,1762237850019,-2818.63,0.00049041,15]
[393037310,1762237850041,-1509.73,0.00049041,120]
[393037311,1762237850064,-1862.09,0.00049041,45]
[393037312,1762237850084,-1262.56,0.00049041,120]
[393037313,1762237850104,-1457.41,0.00049041,120]
[393037314,1762237850121,-949.16,0.00049041,120]
[393037315,1762237850140,-999.0,0.00049153,120]
[393037316,1762237850161,-1236.5,0.00049315,2]
[393037317,1762237850183,-207.96,0.00049315,120]
[393037318,1762237850197,-2818.63,0.00049315,15]
[393037319,1762237850218,-1509.73,0.00049315,120]
[393037320,1762237850235,-1862.09,0.00049315,45]
[393037321,1762237850254,-1262.56,0.00049315,120]
[393037322,1762237850270,-1457.41,0.00049315,120]
[393037323,1762237850285,-999.0,0.00049315,120]
[393037324,1762237850306,-949.16,0.00049315,120]
[393037325,1762237850324,-541519.5104912,0.00049444,30]
[393037326,1762237850440,150.5,0.0002499,120]
[393037327,1762237850534,199.53,0.0002498,120]
[393037361,1762238280271,210.57,0.00017483,2]
[393037363,1762238306926,614.23,0.00021383,30]
[393037368,1762238438824,5000.0,0.00019,3]
[393037369,1762238463980,1304956.5724,0.00037322,120]
[393037374,1762238641429,379.0,0.00032877,120]
[393037402,1762238889222,3521.0,0.00024,30]
[393037600,1762238974179,-215.588007,0.00018803,2]
[393037601,1762238974195,-500.0,0.000189,2]
[393037602,1762238974211,-170.8858379,0.00019122,2]
[393037603,1762238974226,-206.20309081,0.00019832,2]
[393037604,1762238974242,-1224.50393982,0.00019833,2]
[393037605,1762238974258,-300.0,0.00019922,2]
[393037606,1762238974273,-1434.48,0.00019923,3]
[393037607,1762238974290,-717.24,0.00019923,3]
[393037608,1762238974309,-358.62,0.00019923,3]
[393037609,1762238974328,-179.31,0.00019923,3]
[393037610,1762238974348,-537.97,0.00019923,3]
[393037611,1762238974368,-500.0,0.00019932,2]
[393037612,1762238974388,-229.99387219,0.00019932,2]
[393037613,1762238974406,-500.0,0.00019932,2]
[393037614,1762238974428,-500.0,0.00019932,2]
[393037615,1762238974449,-500.0,0.00019932,2]
[393037616,1762238974469,-500.0,0.00019932,2]
[393037617,1762238974489,-500.0,0.00019932,2]
[393037618,1762238974510,-500.0,0.00019932,2]
[393037619,1762238974536,-500.0,0.00019932,2]
[393037620,1762238974556,-500.0,0.00019932,2]
[393037621,1762238974575,-500.0,0.00019932,2]
[393037622,1762238974595,-500.0,0.00019932,2]
[393037623,1762238974617,-500.0,0.00019932,2]
[393037624,1762238974638,-500.0,0.00019932,2]
[393037625,1762238974660,-500.0,0.00019932,2]
[393037626,1762238974681,-500.0,0.00019932,2]
[393037627,1762238974703,-500.0,0.00019932,2]
[393037628,1762238974722,-500.0,0.00019932,2]
[393037629,1762238974742,-500.0,0.00019932,2]
[393037630,1762238974764,-500.0,0.00019932,2]
[393037631,1762238974785,-500.0,0.00019932,2]
[393037632,1762238974806,-7.43761848,0.00019932,2]
[393037633,1762239032926,-283.94069938,0.000189,2]
[393037634,1762239032936,-425.30703005,0.00019536,3]
[393037635,1762239032948,-4574.69296995,0.00019536,3]
[393037636,1762239032957,-5000.0,0.00019733,3]
[393037637,1762239032967,-1200.0,0.0001993,2]
[393037638,1762239032976,-510.99571053,0.00019931,2]
[393037639,1762239032985,-500.0,0.00019931,2]
[393037640,1762239032995,-500.0,0.00019931,2]
[393037643,1762239033007,-500.0,0.00019931,2]
[393037644,1762239033016,-500.0,0.00019931,2]
[393037646,1762239033026,-500.0,0.00019931,2]
[393037648,1762239033036,-500.0,0.00019931,2]
[393037650,1762239033046,-500.0,0.00019931,2]
[393037652,1762239033057,-553.40760907,0.00019931,2]
[393037653,1762239033067,-500.0,0.00019931,2]
[393037654,1762239033078,-500.0,0.00019931,2]
[393037655,1762239033089,-500.0,0.00019931,2]
[393037656,1762239033098,-500.0,0.00019931,2]
[393037657,1762239033108,-500.0,0.00019931,2]
[393037658,1762239033118,-500.0,0.00019931,2]
[393037659,1762239033128,-500.0,0.00019931,2]
[393037660,1762239033137,-500.0,0.00019931,2]
[393037661,1762239033147,-500.0,0.00019931,2]
[393037662,1762239033160,-500.0,0.00019931,2]
[393037663,1762239033169,-500.0,0.00019931,2]
[393037665,1762239033179,-585.74566923,0.00019931,2]
[393037667,1762239033189,-500.0,0.00019931,2]
[393037669,1762239033199,-500.0,0.00019931,2]
[393037671,1762239033208,-437.67853277,0.00019931,2]
[393037673,1762239033219,-500.0,0.00019931,2]
[393037675,1762239033229,-500.0,0.00019931,2]
[393037677,1762239033240,-500.0,0.00019931,2]
[393037680,1762239033250,-500.0,0.00019931,2]
[393037681,1762239033261,-500.0,0.00019931,2]
[393037683,1762239033270,-500.0,0.00019931,2]
[393037684,1762239033280,-500.0,0.00019931,2]
[393037685,1762239033289,-500.0,0.00019931,2]
[393037686,1762239033298,-500.0,0.00019931,2]
[393037687,1762239033307,-500.0,0.00019931,2]
[393037688,1762239033317,-500.0,0.00019931,2]
[393037689,1762239033327,-500.0,0.00019931,2]
[393037690,1762239033336,-500.0,0.00019931,2]
[393037692,1762239033345,-500.0,0.00019931,2]
[393037694,1762239033355,-500.0,0.00019931,2]
[393037696,1762239033365,-300.0,0.00019931,2]
[393037698,1762239033374,-300.0,0.00019931,2]
[393037700,1762239033384,-300.0,0.00019931,2]
[393037702,1762239033394,-300.0,0.00019931,2]
[393037704,1762239033403,-300.0,0.00019931,2]
[393037706,1762239033412,-1200.0,0.00019932,2]
[393037708,1762239033421,-50000.0,0.00019932,2]
[393037709,1762239033431,-500.0,0.00019933,2]
[393037712,1762239033440,-500.0,0.00019973,2]
[393037713,1762239033450,-500.0,0.00019973,2]
[393037716,1762239033461,-500.0,0.00019973,2]
[393037717,1762239033470,-500.0,0.00019973,2]
[393037719,1762239033479,-500.0,0.00019973,2]
[393037721,1762239033490,-424.30911472,0.00019973,2]
[393037724,1762239033508,-500.0,0.00019973,2]
[393037726,1762239033517,-500.0,0.00019973,2]
[393037728,1762239033527,-500.0,0.00019973,2]
[393037730,1762239033537,-500.0,0.00019973,2]
[393037732,1762239033547,-500.0,0.00019973,2]
[393037734,1762239033556,-500.0,0.00019973,2]
[393037736,1762239033566,-500.0,0.00019973,2]
[393037738,1762239033576,-158.11279063,0.00019973,2]
[393037740,1762239033586,-170.26214199,0.00019973,2]
[393037742,1762239033596,-500.0,0.00019973,2]
[393037744,1762239033605,-500.0,0.00019973,2]
[393037746,1762239033615,-500.0,0.00019973,2]
[393037748,1762239033624,-500.0,0.00019973,2]
[393037750,1762239033635,-562.26380305,0.00019973,2]
[393037752,1762239033645,-500.0,0.00019973,2]
[393037754,1762239033655,-500.0,0.00019973,2]
[393037756,1762239033664,-502.73096405,0.00019973,2]
[393037758,1762239033674,-576.70275738,0.00019973,2]
[393037760,1762239033683,-500.0,0.00019973,2]
[393037762,1762239033693,-150.0,0.00020009,2]
[393037764,1762239033703,-151.0,0.00020021,2]
[393037766,1762239033714,-151.0,0.00020021,2]
[393037768,1762239033723,-151.0,0.00020021,2]
[393037770,1762239033733,-151.0,0.00020021,2]
[393037773,1762239033744,-151.0,0.00020021,2]
[393037775,1762239033757,-151.0,0.00020021,2]
[393037777,1762239033767,-151.0,0.00020021,2]
[393037779,1762239033775,-151.0,0.00020021,2]
[393037780,1762239033784,-151.0,0.00020021,2]
[393037782,1762239033793,-151.0,0.00020021,2]
[393037784,1762239033802,-151.0,0.00020021,2]
[393037786,1762239033812,-284.63813991,0.00020021,2]
[393037788,1762239033820,-1559.71072991,0.00020033,5]
[393037790,1762239033832,-500.0,0.00020033,2]
[393037792,1762239033840,-500.0,0.00020033,2]
[393037794,1762239033849,-500.0,0.00020035,2]
[393037797,1762239033858,-500.0,0.00020073,2]
[393037798,1762239033865,-500.0,0.00020073,2]
[393037800,1762239033874,-390.31638483,0.00020073,2]
[393037802,1762239033882,-500.0,0.00020073,2]
[393037804,1762239033892,-500.0,0.00020073,2]
[393037806,1762239033901,-500.0,0.00020073,2]
[393037808,1762239033912,-500.0,0.00020073,2]
[393037810,1762239033923,-500.0,0.00020207,2]
[393037812,1762239033932,-500.0,0.00020481,2]
[393037814,1762239033942,-1000.0,0.00020521,2]
[393037816,1762239033952,-380.04005811,0.00020521,2]
[393037818,1762239033962,-1000.0,0.00020521,2]
[393037820,1762239033971,-1000.0,0.00020521,2]
[393037822,1762239033980,-500.0,0.00020521,2]
[393037824,1762239033990,-1000.0,0.00020521,2]
[393037826,1762239034002,-500.0,0.00020521,2]
[393037829,1762239034013,-500.0,0.00020521,2]
[393037831,1762239034023,-1000.0,0.00020521,2]
[393037833,1762239034034,-1000.0,0.00020521,2]
[393037834,1762239034045,-1000.0,0.00020521,2]
[393037836,1762239034055,-728.11255148,0.00020521,2]
[393037838,1762239034064,-286.96581137,0.00020521,2]
[393037840,1762239034075,-1000.0,0.00020521,2]
[393037842,1762239034087,-1000.0,0.00020521,2]
[393037844,1762239034097,-1000.0,0.00020521,2]
[393037846,1762239034106,-1000.0,0.00020521,2]
[393037848,1762239034116,-796.78984952,0.00020521,2]
[393037850,1762239034126,-1000.0,0.00020521,2]
[393037852,1762239034136,-504.59492432,0.00020621,2]
[393037854,1762239034146,-1000.0,0.00020621,2]
[393037856,1762239034156,-1008.38906671,0.00020621,2]
[393037858,1762239034165,-502.22635647,0.00020621,2]
[393037859,1762239034175,-1000.0,0.00020621,2]
[393037861,1762239034185,-1000.0,0.00020621,2]
[393037863,1762239034194,-551.04743742,0.00020755,2]
[393037865,1762239034203,-500.0,0.00020795,2]
[393037866,1762239034213,-1500.0,0.00021068,2]
[393037867,1762239034222,-489.32863657,0.00021068,2]
[393037868,1762239034232,-1500.0,0.00021068,2]
[393037869,1762239034241,-1500.0,0.00021068,2]
[393037870,1762239034252,-1500.0,0.00021068,2]
[393037871,1762239034262,-1500.0,0.00021068,2]
[393037872,1762239034271,-1500.0,0.00021068,2]
[393037873,1762239034281,-1500.0,0.00021068,2]
[393037874,1762239034291,-1627.28035488,0.00021068,2]
[393037875,1762239034301,-1500.0,0.00021068,2]
[393037876,1762239034310,-1500.0,0.00021068,2]
[393037877,1762239034319,-1500.0,0.00021068,2]
[393037878,1762239034328,-999.03199009,0.00021099,2]
[393037879,1762239034338,-201.64528872,0.00021122,2]
[393037880,1762239034347,-1500.0,0.00021168,2]
[393037881,1762239034356,-1500.0,0.00021168,2]
[393037882,1762239034366,-1515.61085044,0.00021168,2]
[393037883,1762239034375,-2868.96,0.00021293,3]
[393037884,1762239034385,-1434.48,0.00021293,3]
[393037885,1762239034395,-717.24,0.00021293,3]
[393037886,1762239034404,-358.62,0.00021293,3]
[393037887,1762239034417,-8747.9229345,0.00021616,2]
[393037888,1762239034426,-2000.0,0.00021616,2]
[393037889,1762239034435,-2000.0,0.00021616,2]
[393037890,1762239034445,-2000.0,0.00021616,2]
[393037891,1762239034454,-1007.42246392,0.00021616,2]
[393037892,1762239034463,-2000.0,0.00021616,2]
[393037893,1762239034472,-1510.42269891,0.00021616,2]
[393037894,1762239034482,-2000.0,0.00021616,2]
[393037895,1762239034491,-2000.0,0.00021616,2]
[393037896,1762239034502,-493.03581754,0.00021616,2]
[393037897,1762239034511,-2000.0,0.00021616,2]
[393037898,1762239034522,-420.0,0.00021704,2]
[393037899,1762239034532,-420.0,0.00021704,2]
[393037900,1762239034541,-420.0,0.00021704,2]
[393037901,1762239034552,-420.0,0.00021704,2]
[393037902,1762239034562,-1680.0,0.00021705,2]
[393037903,1762239034571,-2000.0,0.00021716,2]
[393037904,1762239034580,-2000.0,0.00021716,2]
[393037905,1762239034589,-500.0,0.00021805,2]
[393037906,1762239034599,-1680.0,0.00021807,2]
[393037907,1762239034608,-500.0,0.00021815,2]
[393037908,1762239034618,-500.0,0.00021815,2]
[393037909,1762239034627,-500.0,0.00021815,2]
[393037910,1762239034637,-500.0,0.00021815,2]
[393037911,1762239034646,-500.0,0.00021815,2]
[393037912,1762239034656,-500.0,0.00021815,2]
[393037913,1762239034665,-500.0,0.00021815,2]
[393037914,1762239034674,-150.0,0.00021828,2]
[393037915,1762239034683,-500.0,0.00021873,2]
[393037916,1762239034693,-500.0,0.00021973,2]
[393037917,1762239034703,-500.0,0.00021973,2]
[393037918,1762239034712,-24712.23,0.000221,7]
[393037919,1762239034722,-660.29173698,0.00022164,2]
[393037920,1762239034731,-2500.0,0.00022164,2]
[393037921,1762239034740,-1685.74439206,0.00022164,2]
[393037922,1762239034753,-2500.0,0.00022164,2]
[393037923,1762239034763,-2500.0,0.00022164,2]
[393037924,1762239034772,-2500.0,0.00022164,2]
[393037925,1762239034782,-621.04029555,0.00022164,2]
[393037926,1762239034792,-2500.0,0.00022264,2]
[393037927,1762239034803,-2500.0,0.00022264,2]
[393037928,1762239034812,-1002.43931167,0.00022421,2]
[393037929,1762239034822,-567.68143804,0.00022428,2]
[393037930,1762239034831,-500.0,0.00022473,2]
[393037931,1762239034840,-500.0,0.00022473,2]
[393037932,1762239034850,-500.0,0.00022473,2]
[393037933,1762239034859,-367.52246347,0.00022473,2]
[393037934,1762239034869,-500.0,0.00022473,2]
[393037935,1762239034878,-500.0,0.00022473,2]
[393037936,1762239034888,-500.0,0.00022473,2]
[393037937,1762239034898,-1000.0,0.00022521,2]
[393037938,1762239034908,-1000.0,0.00022521,2]
[393037939,1762239034917,-500.0,0.00022529,2]
[393037940,1762239034927,-500.0,0.00022529,2]
[393037941,1762239034936,-500.0,0.00022529,2]
[393037942,1762239034946,-2021.0832612,0.0002253,2]
[393037943,1762239034956,-3000.0,0.00022712,2]
[393037944,1762239034965,-3000.0,0.00022712,2]
[393037945,1762239034974,-3000.0,0.00022712,2]
[393037946,1762239034984,-3000.0,0.00022712,2]
[393037947,1762239034994,-1986.90563717,0.00022812,2]
[393037948,1762239035005,-3000.0,0.00022812,2]
[393037949,1762239035014,-160.0,0.00022932,2]
[393037950,1762239035024,-500.0,0.00022973,2]
[393037951,1762239035034,-500.0,0.00022973,2]
[393037952,1762239035043,-500.0,0.00022973,2]
[393037953,1762239035053,-500.0,0.00022973,2]
[393037954,1762239035062,-500.0,0.00022973,2]
[393037955,1762239035072,-500.0,0.00022973,2]
[393037956,1762239035085,-500.0,0.00022973,2]
[393037957,1762239035095,-500.0,0.00022973,2]
[393037958,1762239035104,-500.0,0.00022973,2]
[393037959,1762239035114,-500.0,0.00022973,2]
[393037960,1762239035125,-500.0,0.00022973,2]
[393037961,1762239035135,-500.0,0.00022973,2]
[393037962,1762239035145,-268.93335149,0.00022973,2]
[393037963,1762239035158,-500.0,0.00022973,2]
[393037964,1762239035168,-500.0,0.00022973,2]
[393037965,1762239035178,-631.6603458,0.00022973,2]
[393037966,1762239035188,-500.0,0.00022973,2]
[393037967,1762239035197,-500.0,0.00022973,2]
[393037968,1762239035207,-500.0,0.00022973,2]
[393037969,1762239035216,-500.0,0.00022973,2]
[393037970,1762239035226,-500.0,0.00022973,2]
[393037971,1762239035235,-500.0,0.00022973,2]
[393037972,1762239035244,-500.0,0.00022973,2]